[Event "Titled Tuesday Blitz June 29 2021"]
[White "SergeyShtyka"]
[Black "NikolaGry"]
[WhiteElo "2413"]
[BlackElo "2617"]
[Result "0-1"]
[Round "07"]
[TimeControl "180+1"]
[Date "2021.06.29"]
[WhiteClock "0:00:04"]
[BlackClock "0:00:06"]

1. e4 {[%clk 0:03:00]}  d6 {[%clk 0:02:59]} 2. d4 {[%clk 0:03:00]}  Nf6 {[%clk 0:02:59]} 3. Nc3 {[%clk 0:03:00]}  g6 {[%clk 0:03:00]} 4. g3 {[%clk 0:02:57]}  Bg7 {[%clk 0:02:59]} 5. Bg2 {[%clk 0:02:57]}  O-O {[%clk 0:03:00]} 6. Nge2 {[%clk 0:02:58]}  Nc6 {[%clk 0:03:00]} 7. O-O {[%clk 0:02:57]}  e5 {[%clk 0:03:00]} 8. d5 {[%clk 0:02:53]}  Ne7 {[%clk 0:03:00]} 9. f3 {[%clk 0:02:51]}  Nd7 {[%clk 0:02:57]} 10. Be3 {[%clk 0:02:51]}  f5 {[%clk 0:02:57]} 11. Qd2 {[%clk 0:02:50]}  a6 {[%clk 0:02:54]} 12. Nd1 {[%clk 0:02:49]}  Nf6 {[%clk 0:02:52]} 13. h3 {[%clk 0:02:46]}  Nh5 {[%clk 0:02:41]} 14. g4 {[%clk 0:02:39]}  f4 {[%clk 0:02:39]} 15. gxh5 {[%clk 0:02:16]}  fxe3 {[%clk 0:02:39]} 16. Qxe3 {[%clk 0:02:16]}  gxh5 {[%clk 0:02:39]} 17. Kh2 {[%clk 0:02:08]}  Ng6 {[%clk 0:02:36]} 18. Rg1 {[%clk 0:02:06]}  Qh4 {[%clk 0:02:17]} 19. Qf2 {[%clk 0:02:01]}  Qf6 {[%clk 0:02:12]} 20. Ne3 {[%clk 0:01:44]}  Bh6 {[%clk 0:02:09]} 21. Ng3 {[%clk 0:01:39]}  Bf4 {[%clk 0:02:08]} 22. Kh1 {[%clk 0:01:39]}  Qh4 {[%clk 0:02:00]} 23. Nef1 {[%clk 0:01:38]}  Bxh3 {[%clk 0:01:45]} 24. Bxh3 {[%clk 0:01:38]}  Qxh3+ {[%clk 0:01:45]} 25. Qh2 {[%clk 0:01:38]}  Qxh2+ {[%clk 0:01:44]} 26. Nxh2 {[%clk 0:01:35]}  Bxg3 {[%clk 0:01:43]} 27. Rxg3 {[%clk 0:01:33]}  c6 {[%clk 0:01:25]} 28. dxc6 {[%clk 0:01:28]}  bxc6 {[%clk 0:01:25]} 29. Rd1 {[%clk 0:01:23]}  Rad8 {[%clk 0:01:22]} 30. c4 {[%clk 0:01:24]}  Kf7 {[%clk 0:01:03]} 31. Rg5 {[%clk 0:01:20]}  Nf4 {[%clk 0:00:58]} 32. Nf1 {[%clk 0:01:05]}  Rg8 {[%clk 0:00:46]} 33. Rxg8 {[%clk 0:01:02]}  Kxg8 {[%clk 0:00:45]} 34. Ne3 {[%clk 0:01:00]}  Kf7 {[%clk 0:00:45]} 35. b4 {[%clk 0:00:46]}  Ke6 {[%clk 0:00:43]} 36. Nf5 {[%clk 0:00:44]}  d5 {[%clk 0:00:37]} 37. cxd5+ {[%clk 0:00:38]}  cxd5 {[%clk 0:00:36]} 38. Rc1 {[%clk 0:00:36]}  dxe4 {[%clk 0:00:27]} 39. fxe4 {[%clk 0:00:36]}  Kf6 {[%clk 0:00:21]} 40. Rc6+ {[%clk 0:00:32]}  Kg5 {[%clk 0:00:20]} 41. Rxa6 {[%clk 0:00:32]}  Rd1+ {[%clk 0:00:17]} 42. Kh2 {[%clk 0:00:32]}  Rd2+ {[%clk 0:00:17]} 43. Kg3 {[%clk 0:00:29]}  h4+ {[%clk 0:00:13]} 44. Nxh4 {[%clk 0:00:25]}  Nh5+ {[%clk 0:00:12]} 45. Kf3 {[%clk 0:00:17]}  Kxh4 {[%clk 0:00:12]} 46. Rh6 {[%clk 0:00:18]}  Kg5 {[%clk 0:00:10]} 47. Rxh7 {[%clk 0:00:17]}  Rxa2 {[%clk 0:00:08]} 48. b5 {[%clk 0:00:18]}  Rb2 {[%clk 0:00:08]} 49. Rb7 {[%clk 0:00:16]}  Rb3+ {[%clk 0:00:08]} 50. Ke2 {[%clk 0:00:16]}  Kf4 {[%clk 0:00:08]} 51. Kd2 {[%clk 0:00:13]}  Ng3 {[%clk 0:00:08]} 52. Kc2 {[%clk 0:00:13]}  Rb4 {[%clk 0:00:08]} 53. Kc3 {[%clk 0:00:13]}  Rd4 {[%clk 0:00:08]} 54. Rf7+ {[%clk 0:00:10]}  Ke3 {[%clk 0:00:07]} 55. b6 {[%clk 0:00:11]}  Nxe4+ {[%clk 0:00:07]} 56. Kb3 {[%clk 0:00:11]}  Nd6 {[%clk 0:00:07]} 57. Re7 {[%clk 0:00:10]}  e4 {[%clk 0:00:07]} 58. b7 {[%clk 0:00:10]}  Nxb7 {[%clk 0:00:07]} 59. Rxb7 {[%clk 0:00:10]}  Kd2 {[%clk 0:00:07]} 60. Rd7 {[%clk 0:00:04]}  Rxd7 {[%clk 0:00:06]} 0-1


[Site "https://www.chess.com"]

[Event "Titled Tuesday Blitz June 29 2021"]
[White "ShahMatKanal"]
[Black "QuakeAOS"]
[WhiteElo "2527"]
[BlackElo "2671"]
[Result "1-0"]
[Round "07"]
[TimeControl "180+1"]
[Date "2021.06.29"]
[WhiteClock "0:00:59"]
[BlackClock "0:01:26"]

1. e4 {[%clk 0:03:00]}  c5 {[%clk 0:02:58]} 2. Nf3 {[%clk 0:02:57]}  d6 {[%clk 0:02:57]} 3. Bb5+ {[%clk 0:02:55]}  Nd7 {[%clk 0:02:57]} 4. O-O {[%clk 0:02:54]}  a6 {[%clk 0:02:57]} 5. Bd3 {[%clk 0:02:54]}  b5 {[%clk 0:02:55]} 6. a4 {[%clk 0:02:52]}  Bb7 {[%clk 0:02:53]} 7. axb5 {[%clk 0:02:51]}  axb5 {[%clk 0:02:53]} 8. Rxa8 {[%clk 0:02:52]}  Bxa8 {[%clk 0:02:51]} 9. Bxb5 {[%clk 0:02:44]}  Bxe4 {[%clk 0:02:51]} 10. d4 {[%clk 0:02:34]}  cxd4 {[%clk 0:02:49]} 11. Nxd4 {[%clk 0:02:25]}  Nf6 {[%clk 0:02:49]} 12. Nc3 {[%clk 0:02:18]}  Bb7 {[%clk 0:02:47]} 13. Re1 {[%clk 0:02:05]}  g6 {[%clk 0:02:39]} 14. Bf4 {[%clk 0:01:54]}  e5 {[%clk 0:02:38]} 15. Nc6 {[%clk 0:01:26]}  Qc7 {[%clk 0:02:34]} 16. Nxe5 {[%clk 0:01:07]}  Be7 {[%clk 0:01:25]} 17. Nxd7 {[%clk 0:01:00]}  Nxd7 {[%clk 0:01:26]} 18. Bxd6 {[%clk 0:00:59]} 1-0


[Site "https://www.chess.com"]

[Event "Titled Tuesday Blitz June 29 2021"]
[White "ShapkinAnatoliy"]
[Black "AryanTari"]
[WhiteElo "2710"]
[BlackElo "2951"]
[Result "0-1"]
[Round "07"]
[TimeControl "180+1"]
[Date "2021.06.29"]
[WhiteClock "0:00:11"]
[BlackClock "0:00:36"]

1. d4 {[%clk 0:02:33]}  Nf6 {[%clk 0:02:57]} 2. c4 {[%clk 0:02:33]}  g6 {[%clk 0:02:57]} 3. Nc3 {[%clk 0:02:32]}  d5 {[%clk 0:02:56]} 4. cxd5 {[%clk 0:02:33]}  Nxd5 {[%clk 0:02:57]} 5. e4 {[%clk 0:02:34]}  Nxc3 {[%clk 0:02:58]} 6. bxc3 {[%clk 0:02:35]}  Bg7 {[%clk 0:02:58]} 7. Nf3 {[%clk 0:02:35]}  c5 {[%clk 0:02:58]} 8. Be3 {[%clk 0:02:35]}  Qa5 {[%clk 0:02:55]} 9. Qd2 {[%clk 0:02:34]}  O-O {[%clk 0:02:56]} 10. Rc1 {[%clk 0:02:34]}  Rd8 {[%clk 0:02:56]} 11. d5 {[%clk 0:02:34]}  e6 {[%clk 0:02:57]} 12. Be2 {[%clk 0:02:34]}  Qa4 {[%clk 0:02:15]} 13. c4 {[%clk 0:02:29]}  Nc6 {[%clk 0:02:15]} 14. Bxc5 {[%clk 0:02:13]}  b6 {[%clk 0:02:13]} 15. Be3 {[%clk 0:02:13]}  Nb4 {[%clk 0:02:02]} 16. O-O {[%clk 0:02:08]}  Qxa2 {[%clk 0:01:24]} 17. Qxb4 {[%clk 0:01:58]}  Qxe2 {[%clk 0:01:24]} 18. Qe7 {[%clk 0:01:44]}  Bd7 {[%clk 0:01:15]} 19. Ng5 {[%clk 0:01:32]}  Be8 {[%clk 0:01:15]} 20. dxe6 {[%clk 0:01:31]}  fxe6 {[%clk 0:01:16]} 21. Qxe6+ {[%clk 0:01:23]}  Kh8 {[%clk 0:01:17]} 22. c5 {[%clk 0:01:07]}  bxc5 {[%clk 0:01:08]} 23. Rxc5 {[%clk 0:01:04]}  Rd1 {[%clk 0:01:07]} 24. h4 {[%clk 0:00:39]}  Qxf1+ {[%clk 0:01:07]} 25. Kh2 {[%clk 0:00:40]}  Qd3 {[%clk 0:01:06]} 26. Rd5 {[%clk 0:00:31]}  Qb3 {[%clk 0:01:06]} 27. Nf7+ {[%clk 0:00:25]}  Bxf7 {[%clk 0:01:04]} 28. Qxf7 {[%clk 0:00:26]}  Rxd5 {[%clk 0:00:59]} 29. exd5 {[%clk 0:00:24]}  Qb8+ {[%clk 0:00:56]} 30. g3 {[%clk 0:00:22]}  Qe8 {[%clk 0:00:53]} 31. Qc7 {[%clk 0:00:18]}  Qd8 {[%clk 0:00:53]} 32. Qc6 {[%clk 0:00:17]}  Rc8 {[%clk 0:00:44]} 33. Qe6 {[%clk 0:00:17]}  Qe8 {[%clk 0:00:44]} 34. Qa6 {[%clk 0:00:14]}  Qd7 {[%clk 0:00:40]} 35. d6 {[%clk 0:00:11]}  Rc6 {[%clk 0:00:36]} 0-1


[Site "https://www.chess.com"]

[Event "Titled Tuesday Blitz June 29 2021"]
[White "Shuvalov"]
[Black "tsaruk_maks"]
[WhiteElo "2462"]
[BlackElo "2645"]
[Result "0-1"]
[Round "07"]
[TimeControl "180+1"]
[Date "2021.06.29"]
[WhiteClock "0:00:02"]
[BlackClock "0:00:03"]

1. Nf3 {[%clk 0:02:59]}  d5 {[%clk 0:02:57]} 2. c4 {[%clk 0:02:59]}  c6 {[%clk 0:02:57]} 3. g3 {[%clk 0:03:00]}  Nf6 {[%clk 0:02:56]} 4. Bg2 {[%clk 0:03:00]}  dxc4 {[%clk 0:02:56]} 5. O-O {[%clk 0:02:59]}  e6 {[%clk 0:02:55]} 6. Qc2 {[%clk 0:02:57]}  Be7 {[%clk 0:02:52]} 7. Qxc4 {[%clk 0:02:57]}  b5 {[%clk 0:02:53]} 8. Qc2 {[%clk 0:02:56]}  Bb7 {[%clk 0:02:53]} 9. d3 {[%clk 0:02:53]}  O-O {[%clk 0:02:53]} 10. a4 {[%clk 0:02:51]}  a6 {[%clk 0:02:53]} 11. Nbd2 {[%clk 0:02:46]}  Qb6 {[%clk 0:02:47]} 12. Nb3 {[%clk 0:02:36]}  Nbd7 {[%clk 0:02:46]} 13. Be3 {[%clk 0:02:35]}  c5 {[%clk 0:02:44]} 14. Bd2 {[%clk 0:02:27]}  Bc6 {[%clk 0:02:37]} 15. Na5 {[%clk 0:02:24]}  Bd5 {[%clk 0:02:20]} 16. e4 {[%clk 0:02:24]}  Bb7 {[%clk 0:02:17]} 17. Nxb7 {[%clk 0:02:03]}  Qxb7 {[%clk 0:02:18]} 18. h3 {[%clk 0:02:03]}  Rac8 {[%clk 0:02:14]} 19. axb5 {[%clk 0:02:01]}  axb5 {[%clk 0:02:14]} 20. Be3 {[%clk 0:02:00]}  Rfd8 {[%clk 0:02:14]} 21. Ra5 {[%clk 0:01:56]}  c4 {[%clk 0:01:56]} 22. Nd4 {[%clk 0:01:42]}  cxd3 {[%clk 0:01:50]} 23. Qxd3 {[%clk 0:01:41]}  b4 {[%clk 0:01:15]} 24. Qb5 {[%clk 0:00:48]}  Qc7 {[%clk 0:01:10]} 25. Rc1 {[%clk 0:00:39]}  Qxc1+ {[%clk 0:00:18]} 26. Bxc1 {[%clk 0:00:40]}  Rxc1+ {[%clk 0:00:19]} 27. Kh2 {[%clk 0:00:40]}  Rdc8 {[%clk 0:00:09]} 28. e5 {[%clk 0:00:32]}  R1c5 {[%clk 0:00:09]} 29. Qa6 {[%clk 0:00:24]}  Nxe5 {[%clk 0:00:03]} 30. Rxc5 {[%clk 0:00:19]}  Rxc5 {[%clk 0:00:04]} 31. Qa8+ {[%clk 0:00:12]}  Bf8 {[%clk 0:00:04]} 32. f4 {[%clk 0:00:08]}  Nd3 {[%clk 0:00:03]} 33. Nc6 {[%clk 0:00:07]}  g6 {[%clk 0:00:03]} 34. b3 {[%clk 0:00:02]}  Rc2 {[%clk 0:00:03]} 35. Kg1 {[%clk 0:00:02]}  Ne1 {[%clk 0:00:03]} 0-1


[Site "https://www.chess.com"]

[Event "Titled Tuesday Blitz June 29 2021"]
[White "Spriteball"]
[Black "elohunter1999"]
[WhiteElo "2394"]
[BlackElo "2564"]
[Result "0-1"]
[Round "07"]
[TimeControl "180+1"]
[Date "2021.06.29"]
[WhiteClock "0:00:04"]
[BlackClock "0:00:11"]

1. d4 {[%clk 0:03:00]}  Nf6 {[%clk 0:02:59]} 2. c4 {[%clk 0:03:01]}  c5 {[%clk 0:02:56]} 3. d5 {[%clk 0:03:01]}  e6 {[%clk 0:02:51]} 4. Nc3 {[%clk 0:03:00]}  exd5 {[%clk 0:02:47]} 5. cxd5 {[%clk 0:03:01]}  d6 {[%clk 0:02:44]} 6. Nf3 {[%clk 0:02:59]}  g6 {[%clk 0:02:44]} 7. g3 {[%clk 0:02:59]}  Bg7 {[%clk 0:02:44]} 8. Bg2 {[%clk 0:02:59]}  O-O {[%clk 0:02:44]} 9. O-O {[%clk 0:02:59]}  a6 {[%clk 0:02:43]} 10. a4 {[%clk 0:02:59]}  Nbd7 {[%clk 0:02:43]} 11. e4 {[%clk 0:02:56]}  Re8 {[%clk 0:02:41]} 12. Nd2 {[%clk 0:02:54]}  Rb8 {[%clk 0:02:41]} 13. Nc4 {[%clk 0:02:51]}  Qc7 {[%clk 0:02:38]} 14. Bf4 {[%clk 0:02:50]}  Bf8 {[%clk 0:02:31]} 15. a5 {[%clk 0:02:34]}  Nh5 {[%clk 0:02:25]} 16. Bg5 {[%clk 0:02:31]}  Ne5 {[%clk 0:02:12]} 17. Nb6 {[%clk 0:02:17]}  Nd7 {[%clk 0:01:56]} 18. Nc4 {[%clk 0:02:11]}  b5 {[%clk 0:01:38]} 19. axb6 {[%clk 0:02:11]}  Nxb6 {[%clk 0:01:39]} 20. Na5 {[%clk 0:02:08]}  Bd7 {[%clk 0:01:38]} 21. Bf3 {[%clk 0:02:02]}  Ng7 {[%clk 0:01:37]} 22. h4 {[%clk 0:01:49]}  f5 {[%clk 0:01:33]} 23. exf5 {[%clk 0:01:33]}  Nxf5 {[%clk 0:01:27]} 24. Ne4 {[%clk 0:01:30]}  Bg7 {[%clk 0:01:23]} 25. Nf6+ {[%clk 0:01:25]}  Kh8 {[%clk 0:01:14]} 26. Nxe8 {[%clk 0:01:24]}  Rxe8 {[%clk 0:01:15]} 27. Qd2 {[%clk 0:01:14]}  Nd4 {[%clk 0:01:12]} 28. Bg2 {[%clk 0:01:14]}  Re2 {[%clk 0:01:01]} 29. Qd3 {[%clk 0:01:02]}  Bb5 {[%clk 0:00:41]} 30. Qd1 {[%clk 0:00:50]}  Rxb2 {[%clk 0:00:32]} 31. Re1 {[%clk 0:00:50]}  Ne2+ {[%clk 0:00:29]} 32. Kh2 {[%clk 0:00:48]}  Nc3 {[%clk 0:00:22]} 33. Qf3 {[%clk 0:00:34]}  Nbxd5 {[%clk 0:00:23]} 34. Bf1 {[%clk 0:00:21]}  h6 {[%clk 0:00:18]} 35. Nc4 {[%clk 0:00:19]}  Rb4 {[%clk 0:00:14]} 36. Bd2 {[%clk 0:00:13]}  Bxc4 {[%clk 0:00:14]} 37. Re8+ {[%clk 0:00:10]}  Kh7 {[%clk 0:00:14]} 38. Bxc4 {[%clk 0:00:09]}  Rxc4 {[%clk 0:00:14]} 39. Qd3 {[%clk 0:00:09]}  Rd4 {[%clk 0:00:13]} 40. Qc2 {[%clk 0:00:09]}  Qf7 {[%clk 0:00:11]} 41. Rae1 {[%clk 0:00:06]}  Qxf2+ {[%clk 0:00:11]} 42. Kh3 {[%clk 0:00:04]}  Rxd2 {[%clk 0:00:11]} 0-1


[Site "https://www.chess.com"]

[Event "Titled Tuesday Blitz June 29 2021"]
[White "Sychev_Klementy"]
[Black "HiHaruka"]
[WhiteElo "2814"]
[BlackElo "2333"]
[Result "1-0"]
[Round "07"]
[TimeControl "180+1"]
[Date "2021.06.29"]
[WhiteClock "0:01:41"]
[BlackClock "0:00:07"]

1. e4 {[%clk 0:03:00]}  c5 {[%clk 0:02:59]} 2. d4 {[%clk 0:02:59]}  cxd4 {[%clk 0:02:58]} 3. c3 {[%clk 0:03:00]}  dxc3 {[%clk 0:02:57]} 4. Nxc3 {[%clk 0:03:00]}  Nc6 {[%clk 0:02:56]} 5. Nf3 {[%clk 0:03:00]}  d6 {[%clk 0:02:52]} 6. Bc4 {[%clk 0:03:00]}  e6 {[%clk 0:02:43]} 7. O-O {[%clk 0:02:59]}  Nf6 {[%clk 0:02:40]} 8. Qe2 {[%clk 0:02:57]}  Be7 {[%clk 0:02:37]} 9. Rd1 {[%clk 0:02:56]}  e5 {[%clk 0:02:18]} 10. h3 {[%clk 0:02:48]}  O-O {[%clk 0:02:16]} 11. Be3 {[%clk 0:02:48]}  Be6 {[%clk 0:02:07]} 12. Bxe6 {[%clk 0:02:46]}  fxe6 {[%clk 0:02:08]} 13. Qc4 {[%clk 0:02:46]}  Qd7 {[%clk 0:01:27]} 14. Ng5 {[%clk 0:02:43]}  Nd8 {[%clk 0:01:26]} 15. Rac1 {[%clk 0:02:44]}  h6 {[%clk 0:01:15]} 16. Nf3 {[%clk 0:02:42]}  Rc8 {[%clk 0:01:10]} 17. Qb3 {[%clk 0:02:41]}  Nc6 {[%clk 0:01:05]} 18. a4 {[%clk 0:02:26]}  Nh5 {[%clk 0:00:43]} 19. Nh2 {[%clk 0:02:19]}  Nf4 {[%clk 0:00:31]} 20. Kh1 {[%clk 0:02:10]}  Bg5 {[%clk 0:00:24]} 21. Nb5 {[%clk 0:02:08]}  Nd4 {[%clk 0:00:20]} 22. Bxd4 {[%clk 0:02:01]}  Rxc1 {[%clk 0:00:18]} 23. Rxc1 {[%clk 0:02:00]}  Ne2 {[%clk 0:00:18]} 24. Rc7 {[%clk 0:01:55]}  Nxd4 {[%clk 0:00:16]} 25. Rxd7 {[%clk 0:01:55]}  Nxb3 {[%clk 0:00:15]} 26. Nf3 {[%clk 0:01:54]}  Rc8 {[%clk 0:00:10]} 27. Nxd6 {[%clk 0:01:49]}  Rc2 {[%clk 0:00:09]} 28. Rxb7 {[%clk 0:01:45]}  Bf4 {[%clk 0:00:08]} 29. Rxb3 {[%clk 0:01:41]}  Rc1+ {[%clk 0:00:08]} 30. Ng1 {[%clk 0:01:42]}  Rf1 {[%clk 0:00:08]} 31. g3 {[%clk 0:01:41]}  Bd2 {[%clk 0:00:07]} 32. Kg2 {[%clk 0:01:42]}  Re1 {[%clk 0:00:08]} 33. Nf3 {[%clk 0:01:42]}  Rd1 {[%clk 0:00:07]} 34. Rd3 {[%clk 0:01:41]} 1-0


[Site "https://www.chess.com"]

[Event "Titled Tuesday Blitz June 29 2021"]
[White "TokChess"]
[Black "mbojan"]
[WhiteElo "2468"]
[BlackElo "2654"]
[Result "1/2-1/2"]
[Round "07"]
[TimeControl "180+1"]
[Date "2021.06.29"]
[WhiteClock "0:00:08"]
[BlackClock "0:00:07"]

1. e4 {[%clk 0:02:59]}  c5 {[%clk 0:02:57]} 2. Nf3 {[%clk 0:02:58]}  Nc6 {[%clk 0:02:57]} 3. Bb5 {[%clk 0:02:57]}  e6 {[%clk 0:02:57]} 4. O-O {[%clk 0:02:56]}  Nge7 {[%clk 0:02:57]} 5. c3 {[%clk 0:02:55]}  a6 {[%clk 0:02:55]} 6. Ba4 {[%clk 0:02:55]}  b5 {[%clk 0:02:54]} 7. Bc2 {[%clk 0:02:55]}  d5 {[%clk 0:02:47]} 8. d3 {[%clk 0:02:54]}  dxe4 {[%clk 0:02:45]} 9. dxe4 {[%clk 0:02:55]}  Qxd1 {[%clk 0:02:46]} 10. Rxd1 {[%clk 0:02:55]}  Bb7 {[%clk 0:02:44]} 11. Nbd2 {[%clk 0:02:55]}  Ng6 {[%clk 0:02:42]} 12. a4 {[%clk 0:02:45]}  Be7 {[%clk 0:02:30]} 13. Nb3 {[%clk 0:02:34]}  b4 {[%clk 0:01:48]} 14. c4 {[%clk 0:02:04]}  Nce5 {[%clk 0:01:26]} 15. Nxe5 {[%clk 0:01:42]}  Nxe5 {[%clk 0:01:27]} 16. Na5 {[%clk 0:01:43]}  Rb8 {[%clk 0:01:25]} 17. Nxb7 {[%clk 0:01:39]}  Rxb7 {[%clk 0:01:26]} 18. b3 {[%clk 0:01:31]}  Nc6 {[%clk 0:01:22]} 19. Be3 {[%clk 0:01:28]}  Bf6 {[%clk 0:01:17]} 20. Rab1 {[%clk 0:01:05]}  Nd4 {[%clk 0:01:03]} 21. Bxd4 {[%clk 0:01:04]}  Bxd4 {[%clk 0:01:04]} 22. Kf1 {[%clk 0:00:49]}  Ke7 {[%clk 0:01:03]} 23. Rd3 {[%clk 0:00:47]}  h5 {[%clk 0:01:02]} 24. h4 {[%clk 0:00:40]}  a5 {[%clk 0:01:02]} 25. Bd1 {[%clk 0:00:35]}  Rh6 {[%clk 0:01:00]} 26. f4 {[%clk 0:00:32]}  Rf6 {[%clk 0:00:45]} 27. g3 {[%clk 0:00:29]}  Rh6 {[%clk 0:00:18]} 28. e5 {[%clk 0:00:29]}  Rd7 {[%clk 0:00:18]} 29. Bf3 {[%clk 0:00:29]}  Rd8 {[%clk 0:00:19]} 30. Rbd1 {[%clk 0:00:28]}  Rf8 {[%clk 0:00:19]} 31. Kg2 {[%clk 0:00:25]}  Rhh8 {[%clk 0:00:17]} 32. Kf1 {[%clk 0:00:18]}  f6 {[%clk 0:00:17]} 33. exf6+ {[%clk 0:00:17]}  gxf6 {[%clk 0:00:18]} 34. Kg2 {[%clk 0:00:17]}  Kd6 {[%clk 0:00:18]} 35. Re1 {[%clk 0:00:16]}  Rfg8 {[%clk 0:00:17]} 36. Re2 {[%clk 0:00:14]}  Rg7 {[%clk 0:00:17]} 37. Be4 {[%clk 0:00:15]}  Rhg8 {[%clk 0:00:14]} 38. Rf3 {[%clk 0:00:15]}  f5 {[%clk 0:00:11]} 39. Bd3 {[%clk 0:00:12]}  Rg4 {[%clk 0:00:12]} 40. Kh3 {[%clk 0:00:12]}  R4g7 {[%clk 0:00:05]} 41. Bc2 {[%clk 0:00:12]}  Rg6 {[%clk 0:00:05]} 42. Bd1 {[%clk 0:00:13]}  Ke7 {[%clk 0:00:04]} 43. Rg2 {[%clk 0:00:12]}  Kf6 {[%clk 0:00:04]} 44. Rd3 {[%clk 0:00:12]}  Rh6 {[%clk 0:00:05]} 45. Bf3 {[%clk 0:00:11]}  Rd8 {[%clk 0:00:05]} 46. Re2 {[%clk 0:00:11]}  Rd6 {[%clk 0:00:05]} 47. Rd1 {[%clk 0:00:11]}  Kg6 {[%clk 0:00:05]} 48. Rde1 {[%clk 0:00:12]}  Kf6 {[%clk 0:00:05]} 49. Rd1 {[%clk 0:00:12]}  Kf7 {[%clk 0:00:06]} 50. Rde1 {[%clk 0:00:12]}  Rh8 {[%clk 0:00:06]} 51. Kg2 {[%clk 0:00:12]}  Kf6 {[%clk 0:00:06]} 52. Rd1 {[%clk 0:00:11]}  Kg6 {[%clk 0:00:05]} 53. Rde1 {[%clk 0:00:11]}  Re8 {[%clk 0:00:06]} 54. Rd1 {[%clk 0:00:11]}  Re7 {[%clk 0:00:06]} 55. Rde1 {[%clk 0:00:11]}  Bf6 {[%clk 0:00:06]} 56. Re3 {[%clk 0:00:07]}  Rd2+ {[%clk 0:00:06]} 57. R1e2 {[%clk 0:00:08]}  Rxe2+ {[%clk 0:00:06]} 58. Rxe2 {[%clk 0:00:06]}  Bd4 {[%clk 0:00:07]} 59. Rd2 {[%clk 0:00:06]}  Rh7 {[%clk 0:00:06]} 60. Rd3 {[%clk 0:00:06]}  Kf6 {[%clk 0:00:06]} 61. Rd2 {[%clk 0:00:07]}  Rh8 {[%clk 0:00:07]} 62. Rd3 {[%clk 0:00:07]}  Rh7 {[%clk 0:00:07]} 63. Rd2 {[%clk 0:00:08]}  Rg7 {[%clk 0:00:07]} 64. Rd3 {[%clk 0:00:08]}  Rh7 {[%clk 0:00:07]} 1/2-1/2


[Site "https://www.chess.com"]

[Event "Titled Tuesday Blitz June 29 2021"]
[White "UKR_Master"]
[Black "HomelessSteven"]
[WhiteElo "2527"]
[BlackElo "2698"]
[Result "1-0"]
[Round "07"]
[TimeControl "180+1"]
[Date "2021.06.29"]
[WhiteClock "0:00:19"]
[BlackClock "0:00:04"]

1. e4 {[%clk 0:03:00]}  e5 {[%clk 0:02:57]} 2. Nf3 {[%clk 0:03:00]}  Nc6 {[%clk 0:02:57]} 3. Bc4 {[%clk 0:03:01]}  Nf6 {[%clk 0:02:57]} 4. d4 {[%clk 0:03:02]}  exd4 {[%clk 0:02:57]} 5. e5 {[%clk 0:03:01]}  d5 {[%clk 0:02:56]} 6. Bb5 {[%clk 0:03:02]}  Ne4 {[%clk 0:02:56]} 7. Nxd4 {[%clk 0:03:03]}  Bc5 {[%clk 0:02:57]} 8. O-O {[%clk 0:02:57]}  O-O {[%clk 0:02:57]} 9. Nxc6 {[%clk 0:02:57]}  bxc6 {[%clk 0:02:56]} 10. Bxc6 {[%clk 0:02:58]}  Ba6 {[%clk 0:02:56]} 11. Qxd5 {[%clk 0:02:50]}  Bxf1 {[%clk 0:02:54]} 12. Bxa8 {[%clk 0:02:41]}  Qh4 {[%clk 0:01:35]} 13. g3 {[%clk 0:02:20]}  Bxf2+ {[%clk 0:00:50]} 14. Kxf1 {[%clk 0:02:17]}  Qxh2 {[%clk 0:00:50]} 15. Qxe4 {[%clk 0:02:09]}  Qg1+ {[%clk 0:00:47]} 16. Ke2 {[%clk 0:02:09]}  Qxc1 {[%clk 0:00:41]} 17. Kxf2 {[%clk 0:01:20]}  Qxb2 {[%clk 0:00:41]} 18. Bd5 {[%clk 0:01:19]}  Qxa1 {[%clk 0:00:37]} 19. Nd2 {[%clk 0:01:20]}  Qc3 {[%clk 0:00:30]} 20. Nf3 {[%clk 0:01:11]}  Kh8 {[%clk 0:00:16]} 21. Kg2 {[%clk 0:01:08]}  f5 {[%clk 0:00:15]} 22. Qd3 {[%clk 0:01:02]}  Qxd3 {[%clk 0:00:14]} 23. cxd3 {[%clk 0:01:03]}  Rd8 {[%clk 0:00:14]} 24. Bc4 {[%clk 0:01:02]}  g6 {[%clk 0:00:12]} 25. Ng5 {[%clk 0:01:02]}  Re8 {[%clk 0:00:12]} 26. Ne6 {[%clk 0:00:51]}  Re7 {[%clk 0:00:10]} 27. Kf3 {[%clk 0:00:49]}  h6 {[%clk 0:00:10]} 28. Kf4 {[%clk 0:00:49]}  Kh7 {[%clk 0:00:09]} 29. Nf8+ {[%clk 0:00:46]}  Kg7 {[%clk 0:00:09]} 30. Ne6+ {[%clk 0:00:47]}  Kh7 {[%clk 0:00:09]} 31. d4 {[%clk 0:00:42]}  c6 {[%clk 0:00:09]} 32. Nc5 {[%clk 0:00:33]}  Re8 {[%clk 0:00:06]} 33. e6 {[%clk 0:00:33]}  Kg7 {[%clk 0:00:06]} 34. Ke5 {[%clk 0:00:34]}  Rb8 {[%clk 0:00:05]} 35. e7 {[%clk 0:00:31]}  Rb1 {[%clk 0:00:04]} 36. Kd6 {[%clk 0:00:25]}  Re1 {[%clk 0:00:03]} 37. Be6 {[%clk 0:00:23]}  Kf6 {[%clk 0:00:02]} 38. e8=Q {[%clk 0:00:23]}  Kg5 {[%clk 0:00:02]} 39. Qe7+ {[%clk 0:00:23]}  Kg4 {[%clk 0:00:03]} 40. Bxf5+ {[%clk 0:00:23]}  gxf5 {[%clk 0:00:02]} 41. Qxe1 {[%clk 0:00:24]}  a5 {[%clk 0:00:01]} 42. Qf2 {[%clk 0:00:24]}  a4 {[%clk 0:00:01]} 43. Nd3 {[%clk 0:00:24]}  Kh3 {[%clk 0:00:02]} 44. Ne5 {[%clk 0:00:19]}  a3 {[%clk 0:00:03]} 45. Qf3 {[%clk 0:00:16]}  h5 {[%clk 0:00:03]} 46. g4+ {[%clk 0:00:17]}  Kh4 {[%clk 0:00:02]} 47. gxf5 {[%clk 0:00:17]}  Kg5 {[%clk 0:00:02]} 48. Qg3+ {[%clk 0:00:17]}  Kxf5 {[%clk 0:00:01]} 49. Qg6+ {[%clk 0:00:17]}  Kf4 {[%clk 0:00:02]} 50. Nd3+ {[%clk 0:00:17]}  Ke3 {[%clk 0:00:03]} 51. Qxh5 {[%clk 0:00:17]}  Kxd4 {[%clk 0:00:03]} 52. Kxc6 {[%clk 0:00:18]}  Kc3 {[%clk 0:00:04]} 53. Qc5+ {[%clk 0:00:17]}  Kd2 {[%clk 0:00:04]} 54. Qxa3 {[%clk 0:00:17]}  Kc2 {[%clk 0:00:04]} 55. Qb3+ {[%clk 0:00:17]}  Kd2 {[%clk 0:00:04]} 56. Nf4 {[%clk 0:00:18]}  Ke1 {[%clk 0:00:04]} 57. Qc2 {[%clk 0:00:17]}  Kf1 {[%clk 0:00:04]} 58. Qe2+ {[%clk 0:00:18]}  Kg1 {[%clk 0:00:04]} 59. Qg2# {[%clk 0:00:19]} 1-0


[Site "https://www.chess.com"]